bitfinex/quotes_ETHUSD_20240907
["timestamp","ask_amount","ask_price","bid_price","bid_amount"]
[1725729852999,1.55226756,2298.1,2298.0,8.70322]
[1725729853247,1.55226756,2298.1,2298.0,8.79666977]
[1725729857937,1.55226756,2298.1,2298.0,4.44505977]
[1725729859810,1.55226756,2298.1,2298.0,8.79666977]
[1725729860009,1.55226756,2298.1,2298.0,4.44505977]
[1725729862049,1.55226756,2298.1,2298.0,0.09344977]
[1725729862724,3.91706756,2298.1,2298.0,0.09344977]
[1725729862929,7.30877432,2298.1,2298.0,0.09344977]
[1725729865466,7.85877432,2298.1,2298.0,0.09344977]
[1725729865618,7.85877432,2298.1,2297.7,4.35206]
[1725729865957,1.55226756,2297.8,2297.7,4.35206]
[1725729868420,1.55226756,2297.8,2297.7,4.44612485]
[1725729872959,1.55226756,2297.8,2297.7,8.79829485]
[1725729878284,3.0,2298.0,2297.9,8.70358]
[1725729878440,2.00812544,2298.1,2298.0,4.35161]
[1725729878636,2.00812544,2298.1,2298.0,8.70322]
[1725729878874,2.00812544,2298.1,2298.0,8.79708699]
[1725729879198,2.00812544,2298.1,2298.0,4.44547699]
[1725729879800,2.00812544,2298.1,2298.0,0.09386699]
[1725729879801,2.81360949,2298.1,2298.0,0.09386699]
[1725729879947,5.81360949,2298.1,2298.0,0.09386699]
[1725729880652,5.81360949,2298.1,2298.0,0.09228655]
[1725729880965,5.81360949,2298.1,2298.0,4.44389655]
[1725729881150,5.81360949,2298.1,2298.0,0.09228655]
[1725729881339,5.81360949,2298.1,2298.0,4.44389655]
[1725729881684,5.35775161,2298.1,2298.0,4.44389655]
[1725729882183,4.55226756,2298.1,2298.0,4.44389655]
[1725729882480,1.55226756,2298.1,2298.0,4.44389655]
[1725729882691,4.55226756,2298.1,2298.0,4.44389655]
[1725729882894,1.55226756,2298.1,2298.0,4.44389655]
[1725729883249,1.55226756,2298.1,2298.0,8.79550655]
[1725729883760,1.55226756,2298.1,2298.0,0.09228655]
[1725729884094,5.00749432,2298.1,2298.0,0.09228655]
[1725729885165,5.00749432,2298.1,2298.0,4.44389655]
[1725729885885,5.00749432,2298.1,2298.0,0.09228655]
[1725729887009,5.00749432,2298.1,2298.0,4.44389655]
[1725729888611,5.00749432,2298.1,2298.0,0.09228655]
[1725729889978,4.55226756,2298.1,2298.0,4.44389655]
[1725729890918,4.55226756,2298.1,2298.0,8.79550655]
[1725729891908,1.55226756,2298.1,2298.0,8.79550655]
[1725729896031,1.55226756,2298.1,2298.0,4.44389655]
[1725729898324,1.55226756,2298.1,2298.0,0.09228655]
[1725729898630,4.52627432,2298.1,2298.0,0.09228655]
[1725729898789,4.52627432,2298.1,2297.8,4.35197]
[1725729898790,7.52627432,2298.1,2297.8,4.35197]
[1725729898990,1.55226756,2297.9,2297.8,4.35197]
[1725729899517,2.00810404,2297.9,2297.8,4.35197]
[1725729902038,2.00810404,2297.9,2297.7,4.35202]
[1725729902195,2.2898,2297.8,2297.5,4.35239]
[1725729902396,1.55226756,2297.6,2297.5,4.35239]
[1725729903535,3.0,2297.7,2297.6,8.70472]
[1725729903741,0.45583648,2297.9,2297.8,4.35198]
[1725729903899,0.45583648,2297.9,2297.8,11.11496]
[1725729910673,0.45583648,2297.9,2297.8,15.46694]
[1725729910847,0.45583648,2297.9,2297.8,16.98323122]
[1725729911035,0.45583648,2297.9,2297.8,19.25763696]
[1725729911232,0.45583648,2297.9,2297.8,19.91315664]
[1725729911549,0.45583648,2297.9,2297.8,19.9131477]
[1725729911950,0.45583648,2297.9,2297.8,24.2651277]
[1725729913223,0.45583648,2297.9,2297.8,25.17722491]
[1725729913420,0.45583648,2297.9,2297.8,25.27095013]
[1725729914244,0.45583648,2297.9,2297.8,24.35885292]
[1725729915181,0.45583648,2297.9,2297.8,24.35870123]
[1725729916940,0.45583648,2297.9,2297.8,17.73239943]
[1725729919140,0.45583648,2297.9,2297.8,20.00672328]
[1725729920041,0.45583648,2297.9,2297.8,24.35870328]
[1725729920267,0.45583648,2297.9,2297.8,24.35856756]
[1725729921781,6.48e-06,2297.9,2297.8,29.62264477]
[1725729922074,6.48e-06,2297.9,2297.8,28.71054756]
[1725729922291,6.48e-06,2297.9,2297.8,33.11069447]
[1725729922466,7.43,2298.3,2298.2,15.41499]
[1725729922667,12.48,2298.8,2298.2,15.41499]
[1725729922668,11.28656756,2298.9,2298.8,4.35009]
[1725729922869,1.55226756,2298.9,2298.8,8.70018]
[1725729923072,1.55226756,2298.9,2298.8,8.79207893]
[1725729923841,4.55226756,2298.9,2298.8,8.79207893]
[1725729924455,4.55226756,2298.9,2298.8,4.44198893]
[1725729932153,5.28351933,2298.9,2298.8,4.44198893]
[1725729932379,6.53055623,2298.9,2298.8,4.44198893]
[1725729934298,8.83485623,2298.9,2298.8,0.09189893]
[1725729934455,8.23644118,2298.9,2298.8,0.09189893]
[1725729934654,8.23644118,2298.9,2298.6,4.35043]
[1725729934857,1.55226756,2298.7,2298.6,4.35043]
[1725729937031,4.55226756,2298.8,2298.7,4.35028]
[1725729937307,4.55226756,2298.8,2298.7,8.70056]
[1725729938972,4.55226756,2298.8,2298.7,8.70056]
[1725729940929,1.55226756,2298.8,2298.7,8.70056]
[1725729941114,4.55226756,2298.8,2298.7,8.70056]
[1725729941614,1.55226756,2298.8,2298.7,8.70056]
[1725729943392,1.55226756,2298.8,2298.7,8.79231629]
[1725729944227,3.45595009,2299.0,2298.8,4.34993]
[1725729944390,1.55226756,2298.9,2298.8,4.34993]
[1725729945263,2.3005,2298.8,2298.7,4.35028]
[1725729945528,5.3005,2298.8,2298.7,4.35028]
[1725729946298,5.3005,2298.8,2298.6,4.35044]
[1725729946503,1.55226756,2298.7,2298.5,4.35054]
[1725729946955,4.55226756,2298.7,2298.5,8.70109]
[1725729947237,5.00821021,2298.7,2298.5,4.35054]
[1725729948126,5.00821021,2298.7,2298.6,4.35047]
[1725729948927,3.45594265,2298.7,2298.6,4.35047]
[1725729949355,0.45594265,2298.7,2298.6,8.70094]
[1725729958597,2.77354265,2298.7,2298.6,4.4423865]
[1725729958899,6.27436367,2298.7,2298.6,4.4423865]
[1725729960005,6.27436367,2298.7,2298.6,0.0919165]
[1725729961214,6.92298552,2298.7,2298.6,0.0919165]
[1725729961511,2.3176,2298.3,2298.2,4.35123]
[1725729961705,7.10598866,2298.6,2298.2,4.35123]
[1725729962004,2.3176,2298.4,2298.2,4.44085278]
[1725729962209,2.3176,2298.4,2298.2,0.08962278]
[1725729962407,2.3176,2298.3,2298.2,0.08962278]
[1725729962610,7.16648975,2298.3,2298.2,0.08962278]
[1725729962904,2.3176,2298.2,2297.9,4.35179]
[1725729963205,1.55226756,2298.0,2297.9,4.35179]
[1725729963670,1.55226756,2298.0,2297.9,8.70358]
[1725729967275,3.0,2298.3,2298.0,4.35143]
[1725729967609,3.57735673,2298.3,2298.2,4.35123]
[1725729967923,3.57735673,2298.3,2298.1,4.35124]
[1725729968809,3.57735673,2298.3,2298.2,0.08982142]
[1725729968997,5.12962429,2298.3,2298.2,0.08982142]
[1725729970093,7.44722429,2298.3,2298.2,0.08982142]
[1725729970279,5.77824614,2298.3,2298.0,4.3516]
[1725729970615,2.3176,2298.0,2297.7,4.35207]
[1725729970802,1.55226756,2297.8,2297.7,4.35207]
[1725729973187,1.55226756,2297.8,2297.7,8.70424]
[1725729973590,1.55226756,2297.8,2297.7,8.79530011]
[1725729976019,1.55226756,2297.8,2297.7,4.44313011]
[1725729977725,1.55226756,2297.8,2297.7,8.79530011]
[1725729977885,2.0082498,2297.8,2297.7,8.79530011]
[1725729978087,2.0082498,2297.8,2297.7,4.44313011]
[1725729978469,0.45598224,2297.8,2297.7,11.27530011]
[1725729980230,0.45598224,2297.8,2297.7,4.44313011]
[1725729981221,2.0082498,2297.8,2297.7,0.09106011]
[1725729981519,5.45142478,2297.8,2297.7,0.09106011]
[1725729987641,7.87492478,2297.8,2297.7,0.09106011]
[1725729987999,7.87492478,2297.8,2297.5,4.35251]
[1725729988229,1.55226756,2297.6,2297.5,4.35251]
[1725729988430,1.55226756,2297.6,2297.4,4.35262]
[1725729988603,1.55226756,2297.6,2297.5,0.09154482]
[1725729989039,1.55226756,2297.6,2297.5,4.44409482]
[1725729995339,1.55226756,2297.6,2297.5,0.09154482]
[1725729995536,1.55226756,2297.6,2297.5,4.44409482]
[1725730000757,4.55226756,2297.6,2297.5,4.44409482]
[1725730000954,4.55226756,2297.6,2297.5,0.09154482]
[1725730000955,5.30205254,2297.6,2297.5,0.09154482]
[1725730003709,5.30205254,2297.6,2297.3,4.35291]
[1725730004009,1.55226756,2297.4,2297.3,4.35291]
[1725730007412,3.45597768,2297.5,2297.4,4.35274]
[1725730007576,3.45597768,2297.5,2297.4,11.02258]
[1725730007782,3.45597768,2297.5,2297.4,16.48628309]
[1725730008005,0.45597768,2297.5,2297.4,16.48628309]
[1725730016196,0.45597768,2297.5,2297.4,8.70548]
[1725730018435,0.45597768,2297.5,2297.4,8.79431678]
[1725730018644,0.45597768,2297.5,2297.4,11.18671678]
[1725730019938,0.45597768,2297.5,2297.4,15.53945678]
[1725730020144,0.45597768,2297.5,2297.4,17.05595491]
[1725730020503,0.45597768,2297.5,2297.4,19.33065519]
[1725730020703,0.45597768,2297.5,2297.4,17.05595491]
[1725730020904,0.45597768,2297.5,2297.4,19.33066278]
[1725730021733,0.45597768,2297.5,2297.4,17.05595491]
[1725730022124,0.45597768,2297.5,2297.4,13.14705678]
[1725730023608,0.45597768,2297.5,2297.4,15.53945678]
[1725730023846,0.45597768,2297.5,2297.4,17.05597438]
[1725730024545,0.45597768,2297.5,2297.4,19.33071997]
[1725730024904,0.45597768,2297.5,2297.4,23.68345997]
[1725730025109,0.45597768,2297.5,2297.4,24.59594116]
[1725730026124,0.45597768,2297.5,2297.4,19.33071997]
[1725730026343,0.45597768,2297.5,2297.4,23.68345997]
[1725730026506,0.45597768,2297.5,2297.4,19.33071997]
[1725730028065,0.45597768,2297.5,2297.4,17.81418754]
[1725730028229,0.45597768,2297.5,2297.4,19.33067471]
[1725730029065,0.45597768,2297.5,2297.4,23.68341471]
[1725730029670,0.45597768,2297.5,2297.4,23.59457793]
[1725730029967,0.45597768,2297.5,2297.4,23.68302712]
[1725730030120,0.45597768,2297.5,2297.4,24.59550831]
[1725730030325,7.68e-06,2297.5,2297.4,24.59550831]
[1725730030937,7.68e-06,2297.5,2297.4,23.68302712]
[1725730031141,7.68e-06,2297.5,2297.4,24.59480759]
[1725730031366,7.43,2298.0,2297.9,13.05537]
[1725730031668,3.0,2298.2,2298.1,8.70284]
[1725730032043,3.0,2298.2,2298.1,8.79008227]
[1725730036367,3.0,2298.2,2298.1,10.1042695]
[1725730036600,5.2554,2298.2,2298.1,0.08724227]
[1725730036888,5.85381505,2298.2,2298.1,0.08724227]
[1725730038639,5.2554,2298.2,2298.1,0.08724227]
[1725730039181,5.2554,2298.2,2297.9,4.35168]
[1725730039338,1.55226756,2298.0,2297.9,4.35168]
[1725730039547,4.55226756,2298.0,2297.9,4.35168]
[1725730039946,2.2527,2297.9,2297.7,4.35201]
[1725730040157,1.55226756,2297.8,2297.7,4.35201]
[1725730040477,3.80496756,2297.8,2297.7,4.35201]
[1725730040651,6.80496756,2297.8,2297.7,4.35201]
[1725730043185,7.50235028,2297.8,2297.6,4.35235]
[1725730044288,7.50235028,2297.8,2297.6,8.70463]
[1725730044446,7.50235028,2297.8,2297.6,4.35226]
[1725730046051,7.50235028,2297.8,2297.6,8.70454]
[1725730046247,7.50235028,2297.8,2297.6,4.35226]
[1725730048385,7.50235028,2297.8,2297.6,8.70453]
[1725730048595,6.80496756,2297.8,2297.6,8.70453]
[1725730049093,6.80496756,2297.8,2297.7,0.08777931]
[1725730051165,6.80496756,2297.8,2297.5,4.35253]
[1725730051399,1.55226756,2297.6,2297.5,4.35253]
[1725730051813,3.0,2297.7,2297.6,4.35236]
[1725730051972,3.14377157,2298.3,2298.2,4.35123]
[1725730051973,2.04739177,2298.3,2298.2,4.35123]
[1725730052175,1.55226756,2298.3,2298.2,4.35123]
[1725730057306,1.55226756,2298.3,2298.2,4.4384611]
[1725730057518,1.55226756,2298.3,2298.2,4.35123]
[1725730057679,1.55226756,2298.3,2298.2,4.4384611]
[1725730062080,3.45597563,2298.4,2298.2,4.4384611]
[1725730062081,0.45597563,2298.4,2298.3,11.10538]
[1725730062322,11.44416756,2298.9,2298.6,4.35028]
[1725730062520,11.44416756,2298.9,2298.3,6.75434]
[1725730062521,4.47009038,2298.9,2298.7,4.3502]
[1725730062691,4.47009038,2298.9,2298.7,4.43644103]
[1725730062891,0.64700904,2298.8,2298.7,4.43644103]
[1725730063090,2.00819038,2298.9,2298.8,4.35009]
[1725730063494,5.00819038,2298.9,2298.8,4.43598209]
[1725730064323,3.45592282,2298.9,2298.8,4.43598209]
[1725730064527,3.45592282,2298.9,2298.8,8.78607209]
[1725730064528,5.00819038,2298.9,2298.8,8.78607209]
[1725730064710,2.00819038,2298.9,2298.8,8.78607209]
[1725730072044,2.00819038,2298.9,2298.8,4.43598209]
[1725730075961,4.45969038,2298.9,2298.8,4.43598209]
[1725730076216,7.45969038,2298.9,2298.8,4.43598209]
[1725730079468,7.00376756,2298.9,2298.8,4.43598209]
[1725730080024,7.00376756,2298.9,2298.4,4.35075]
[1725730080025,9.70414432,2298.9,2298.4,4.35075]
[1725730080256,1.55226756,2298.5,2298.4,4.35075]
[1725730080459,1.55226756,2298.5,2298.4,8.7016]
[1725730080756,1.55226756,2298.7,2298.5,4.35055]
[1725730082330,3.0,2298.8,2298.6,4.35047]
[1725730082532,1.55226756,2298.7,2298.6,4.35047]
[1725730083071,1.55226756,2298.7,2298.6,10.96354]
[1725730083923,1.55226756,2298.7,2298.6,8.70094]
[1725730087568,1.55226756,2298.7,2298.6,8.78384755]
[1725730089564,2.00813164,2298.7,2298.6,8.78384755]
[1725730091398,2.7540948,2298.7,2298.6,4.43337755]
[1725730091558,5.7540948,2298.7,2298.6,4.43337755]
[1725730094379,5.00813164,2298.7,2298.6,4.43337755]
[1725730094955,2.00813164,2298.7,2298.6,4.43337755]
[1725730095161,5.00813164,2298.7,2298.6,4.43337755]
[1725730095368,2.00813164,2298.7,2298.6,4.43337755]
[1725730108012,0.45586408,2298.7,2298.6,4.43337755]
[1725730109314,1.20182724,2298.7,2298.6,4.43337755]
[1725730109516,0.74596316,2298.7,2298.6,4.43337755]
[1725730111342,3.0,2298.8,2298.6,4.43337755]
[1725730116717,3.0,2298.8,2298.7,4.35028]
[1725730117156,3.0,2298.8,2298.7,4.43310673]
[1725730119467,3.0,2298.8,2298.7,0.08282673]
[1725730119627,3.45590775,2298.8,2298.7,0.08282673]
[1725730119826,4.21854293,2298.8,2298.7,0.08282673]
[1725730127232,3.45590775,2298.8,2298.7,0.08282673]
[1725730129879,5.73680775,2298.8,2298.7,0.08282673]
[1725730131381,5.83316756,2298.3,2297.7,6.63848]
[1725730131684,1.55226756,2297.8,2297.7,6.63848]
[1725730132681,1.55226756,2297.8,2297.7,4.35208]
[1725730133702,4.2809,2297.7,2297.1,4.35321]
[1725730133843,1.55226756,2297.2,2297.1,4.35321]
[1725730134286,1.55226756,2297.2,2296.9,4.35352]
[1725730134488,1.55226756,2297.0,2296.6,4.35424]
[1725730134717,1.55226756,2296.8,2296.5,4.35429]
[1725730135011,1.55226756,2296.8,2296.1,4.35513]
[1725730135012,0.56004255,2296.7,2296.1,2.434]
[1725730135146,1.55226756,2296.5,2296.3,4.35464]
[1725730136346,0.34817597,2296.7,2296.3,4.35464]
[1725730136550,5.0,2297.0,2296.6,4.35413]
[1725730136754,1.55226756,2296.8,2296.6,4.35413]
[1725730137009,3.0,2296.9,2296.6,4.35413]
[1725730137172,3.0,2296.9,2296.8,4.35388]
[1725730137497,1.55226756,2296.9,2296.8,4.35388]
[1725730138606,0.4559886,2297.1,2296.9,4.35352]
[1725730138755,1.55226756,2297.0,2296.9,4.35352]
[1725730138950,1.55226756,2297.0,2296.9,8.70721]
[1725730139157,1.55226756,2297.0,2296.9,11.14121]
[1725730140401,0.4559886,2297.1,2297.0,4.3535]
[1725730140605,0.4559886,2297.1,2297.0,8.79406324]
[1725730141312,0.4559886,2297.1,2297.0,8.707]
[1725730142000,0.4559886,2297.1,2297.0,13.0605]
[1725730142171,0.4559886,2297.1,2297.0,15.4945]
[1725730149391,0.4559886,2297.1,2297.0,8.707]
[1725730153545,0.4559886,2297.1,2297.0,8.78538726]
[1725730153750,0.4559886,2297.1,2297.0,13.13888726]
[1725730154219,0.4559886,2297.1,2297.0,15.57288726]
[1725730155225,0.4559886,2297.1,2297.0,11.21938726]
[1725730157593,0.4559886,2297.1,2297.0,8.78538726]
[1725730162511,2.8589886,2297.1,2297.0,0.07838726]
[1725730162714,10.24549708,2297.1,2297.0,0.07838726]
[1725730162929,9.58681553,2297.1,2296.8,4.35377]
[1725730163138,3.0,2297.0,2296.8,4.35377]
[1725730165885,3.0,2297.0,2296.8,8.70756]
[1725730166699,3.0,2297.0,2296.9,4.35369]
[1725730167499,3.0,2297.0,2296.9,8.70738]
[1725730167730,0.4559886,2297.1,2297.0,8.707]
[1725730168637,0.4559886,2297.1,2297.0,8.78305958]
[1725730175101,0.4559886,2297.1,2297.0,13.13655958]
[1725730175857,0.4559886,2297.1,2297.0,8.78305958]
[1725730176348,3.4559886,2297.1,2297.0,4.42955958]
[1725730183365,3.4559886,2297.1,2297.0,8.78305958]
[1725730184570,3.4559886,2297.1,2297.0,4.42955958]
[1725730184940,4.18576059,2297.1,2297.0,4.42955958]
[1725730185371,4.18576059,2297.1,2297.0,0.07605958]
[1725730185781,6.47376059,2297.1,2297.0,0.07605958]
[1725730185988,6.47376059,2297.1,2296.7,4.35405]
[1725730186193,1.55373134,2296.8,2296.7,4.35405]
[1725730186985,2.0097553,2296.8,2296.7,4.35405]
[1725730188080,4.2977553,2296.8,2296.6,8.70826]
[1725730188386,3.0,2296.7,2296.6,4.35411]
[1725730189983,3.0,2296.7,2296.6,8.70837]
[1725730190288,2.0097553,2296.8,2296.7,4.35407]
[1725730195298,2.0097553,2296.8,2296.7,8.70814]
[1725730195299,0.45602396,2296.8,2296.7,8.70814]
[1725730198577,0.45602396,2296.8,2296.7,8.78485504]
[1725730201025,0.45602396,2296.8,2296.7,13.13892504]
[1725730204455,0.45602396,2296.8,2296.7,14.65596132]
[1725730204659,0.45602396,2296.8,2296.7,16.93135259]
[1725730204967,0.45602396,2296.8,2296.7,21.28542259]
[1725730205270,0.45602396,2296.8,2296.7,24.68885943]
[1725730205417,0.45602396,2296.8,2296.7,24.69229576]
[1725730205619,0.45602396,2296.8,2296.7,19.42305782]
[1725730205820,0.45602396,2296.8,2296.7,20.33822576]
[1725730206120,0.45602396,2296.8,2296.7,19.42305782]
[1725730206424,0.45602396,2296.8,2296.7,24.69229576]
[1725730206624,0.45602396,2296.8,2296.7,20.33822576]
[1725730206934,0.45602396,2296.8,2296.7,23.77712782]
[1725730207116,0.45602396,2296.8,2296.7,28.17891125]
[1725730207320,0.45602396,2296.8,2296.7,25.14527364]
[1725730207556,0.45602396,2296.8,2296.7,23.82483264]
[1725730207753,0.45602396,2296.8,2296.7,20.33817416]
[1725730208373,0.45602396,2296.8,2296.7,16.54584138]
[1725730208574,0.45602396,2296.8,2296.7,20.33797033]
[1725730209739,0.45602396,2296.8,2296.7,24.69204033]
[1725730209952,0.45602396,2296.8,2296.7,24.6919326]
[1725730210181,0.45602396,2296.8,2296.7,24.69190686]
[1725730210675,3.0,2297.2,2297.1,13.05993]
[1725730210877,3.0,2297.2,2297.1,15.55173]
[1725730211040,5.41,2297.7,2297.6,4.35236]
[1725730211237,6.96373134,2297.7,2297.6,4.35236]
[1725730212290,4.55373134,2297.7,2297.6,8.70472]
[1725730212469,3.0,2297.8,2297.7,4.35217]
[1725730215598,3.0,2297.8,2297.7,8.70434]
[1725730216015,3.0,2298.0,2297.9,8.70358]
[1725730216301,1.55373134,2298.0,2297.9,8.70358]
[1725730217475,1.55373134,2298.0,2297.9,8.77781326]
[1725730218404,3.84543134,2298.0,2297.9,4.42602326]
[1725730218581,6.84543134,2298.0,2297.9,4.42602326]
[1725730220204,7.52997447,2298.0,2297.9,0.07423326]
[1725730220428,8.65623413,2298.0,2297.9,0.07423326]
[1725730220712,2.2917,2297.9,2297.6,4.35229]
[1725730221010,1.55373134,2297.7,2297.6,4.35229]
[1725730221308,2.2917,2297.6,2297.1,4.35319]
[1725730221512,1.55373134,2297.2,2297.1,4.35319]
[1725730221976,4.55373134,2297.2,2297.1,4.35319]
[1725730222180,4.55373134,2297.2,2296.9,4.35356]
[1725730222379,2.2917,2296.9,2296.7,4.35393]
[1725730222566,2.2917,2296.9,2296.5,4.35431]
[1725730222567,1.55373134,2296.8,2296.5,4.35431]
[1725730222763,1.55373134,2296.6,2296.5,8.70863]
[1725730224125,3.0,2296.8,2296.5,8.70863]
[1725730224679,3.0,2296.8,2296.6,4.35422]
[1725730227420,3.0,2296.8,2296.7,4.35407]
[1725730231134,3.0,2296.8,2296.7,4.42776537]
[1725730231336,3.0,2296.8,2296.7,0.07369537]
[1725730231540,3.94781241,2296.8,2296.7,0.07369537]
[1725730231703,6.23951241,2296.8,2296.7,0.07369537]
[1725730231903,6.23951241,2296.8,2296.7,4.42776537]
[1725730232103,6.23951241,2296.8,2296.7,0.07369537]
[1725730232502,7.36577207,2296.8,2296.7,0.07369537]
[1725730232840,2.2917,2296.7,2296.0,4.35521]
[1725730233042,0.79157721,2296.6,2296.0,4.35521]
[1725730233215,3.73045274,2296.4,2296.0,4.35521]
[1725730233538,3.0,2296.3,2296.1,4.35521]
[1725730233902,5.2917,2296.3,2296.1,4.35521]
[1725730237209,5.2917,2296.3,2296.2,4.35502]
[1725730237604,5.2917,2296.3,2296.2,8.71004]
[1725730237605,3.0,2296.3,2296.2,8.71004]
[1725730237946,3.0,2296.5,2296.3,4.35482]
[1725730238854,3.0,2296.5,2296.4,4.35464]
[1725730239146,2.4876,2296.6,2296.4,4.35464]
[1725730240151,2.4876,2296.6,2296.3,4.35482]
[1725730240152,7.2516072,2296.6,2296.3,4.35482]
[1725730240328,3.0,2296.5,2296.3,4.35482]
[1725730240511,3.0,2296.5,2296.1,4.35505]
[1725730240717,3.73045274,2296.4,2296.1,4.35505]
[1725730240949,3.0,2296.3,2296.1,8.71016]
[1725730241554,3.0,2296.3,2296.2,4.35502]
[1725730241955,3.0,2296.3,2296.1,6.79675]
[1725730241956,3.4559544,2296.5,2296.3,4.3548]
[1725730243332,6.21805274,2296.4,2296.1,4.35508]
[1725730243530,3.0,2296.3,2296.1,4.35508]
[1725730243743,3.0,2296.3,2296.2,4.35502]
[1725730245948,3.0,2296.3,2296.0,4.35527]
[1725730246157,3.0,2296.3,2296.1,0.073097]
[1725730246364,3.96740071,2296.3,2296.1,0.073097]
[1725730246562,3.0,2296.3,2296.2,4.35502]
[1725730246874,3.0,2296.3,2296.2,8.71004]
[1725730247029,3.4559544,2296.5,2296.2,8.78304606]
[1725730249047,3.4559544,2296.5,2296.3,4.3548]
[1725730249357,3.4559544,2296.5,2296.4,0.07269489]
[1725730250640,3.4559544,2296.5,2296.4,4.42733489]
[1725730251370,3.4559544,2296.5,2296.4,0.07269489]
[1725730254401,3.4559544,2296.5,2296.4,4.42733489]
[1725730254588,3.4559544,2296.5,2296.4,0.07269489]
[1725730256385,4.17459511,2296.5,2296.4,0.07269489]
[1725730256592,6.60409511,2296.5,2296.4,0.07269489]
[1725730257089,6.60409511,2296.5,2296.2,4.35497]
[1725730257305,6.60409511,2296.5,2296.3,0.07286044]
[1725730257461,4.17459511,2296.5,2296.3,4.35481]
[1725730257656,3.4559544,2296.5,2296.4,0.07270486]
[1725730258049,5.0106883,2296.5,2296.4,0.07270486]
[1725730258251,2.0106883,2296.5,2296.4,4.42734486]
[1725730258811,2.0106883,2296.5,2296.4,0.07270486]
[1725730259356,2.0106883,2296.5,2296.2,8.7099]
[1725730259654,2.0106883,2296.5,2296.3,0.07286044]
[1725730259856,2.0106883,2296.5,2296.2,8.7099]
[1725730260086,2.0106883,2296.5,2296.3,0.07286044]
[1725730260283,2.0106883,2296.5,2296.2,8.70984]
[1725730260497,2.75470713,2296.5,2296.4,0.07270486]
[1725730260701,2.75470713,2296.5,2296.2,8.70983]
[1725730260908,3.9663339,2296.3,2296.0,4.35531]
[1725730261110,1.5547339,2296.1,2296.0,4.35531]
[1725730263296,3.0,2296.2,2296.1,8.71042]
[1725730263511,0.4559834,2296.3,2296.2,4.35502]
[1725730264388,0.4559834,2296.3,2296.2,8.71004]
[1725730264917,0.4559834,2296.3,2296.2,9.827854]
[1725730265115,7.43,2296.7,2296.5,4.35445]
[1725730265276,0.45595102,2296.7,2296.6,4.35426]
[1725730268231,3.45595102,2296.7,2296.6,4.35426]
[1725730270731,3.45595102,2296.7,2296.6,8.70852]
[1725730272033,3.0,2296.7,2296.6,8.70852]
[1725730272836,3.0,2296.7,2296.6,4.35426]
[1725730273037,3.67306628,2296.7,2296.6,4.35426]
[1725730273334,3.0,2296.7,2296.6,8.70852]
[1725730273501,3.0,2296.7,2296.6,4.35426]
[1725730273842,3.0,2296.7,2296.6,8.70852]
[1725730275817,3.0,2296.7,2296.6,10.99652]
[1725730275994,0.45594714,2297.1,2297.0,4.3535]
[1725730276195,2.33356053,2297.1,2297.0,4.3535]
[1725730276516,0.45594714,2297.1,2297.0,4.42486472]
[1725730277446,3.45594714,2297.1,2297.0,4.42486472]
[1725730278946,6.8360068,2297.1,2297.0,0.07136472]
[1725730279101,6.8360068,2297.1,2296.8,4.3538]
[1725730279489,3.73066277,2296.9,2296.8,4.3538]
[1725730279594,6.73066277,2296.9,2296.8,4.3538]
[1725730280411,6.73066277,2296.9,2296.7,4.35394]
[1725730280608,3.0,2296.8,2296.7,4.35394]
[1725730288014,4.5543729,2296.8,2296.7,4.35394]
[1725730288346,4.5543729,2296.8,2296.7,8.70801]
[1725730288347,1.5543729,2296.8,2296.7,8.70801]
[1725730289411,3.0,2296.9,2296.7,8.70801]
[1725730289412,3.0,2296.9,2296.8,8.70776]
[1725730289615,1.5543729,2297.0,2296.7,4.35394]
[1725730289856,1.5543729,2297.0,2296.9,8.70738]
[1725730290917,1.5543729,2297.0,2296.9,4.35369]
[1725730291118,1.5543729,2297.0,2296.9,4.42510578]
[1725730292218,1.5543729,2297.0,2296.9,8.77879578]
[1725730292829,1.5543729,2297.0,2296.9,4.42510578]
[1725730293171,1.5543729,2297.0,2296.9,8.77879578]
[1725730293349,1.5543729,2297.0,2296.9,4.42510578]
[1725730299649,2.01029904,2297.0,2296.9,4.42510578]
[1725730299988,4.69335113,2297.0,2296.9,4.42510578]
[1725730300282,7.69335113,2297.0,2296.9,4.42510578]
[1725730301778,5.22815113,2297.0,2296.9,4.42510578]
[1725730302111,5.01029904,2297.0,2296.9,4.42510578]
[1725730302596,2.01029904,2297.0,2296.9,4.42510578]
[1725730302799,2.01029904,2297.0,2296.9,8.77879578]
[1725730303372,2.01029904,2297.0,2296.9,4.42510578]
[1725730303681,2.01029904,2297.0,2296.9,8.77879578]
[1725730304077,2.01029904,2297.0,2296.9,4.42510578]
[1725730304286,2.01029904,2297.0,2296.9,8.77879578]
[1725730304487,2.01029904,2297.0,2296.9,4.42510578]
[1725730304919,2.01029904,2297.0,2296.9,8.77879578]
[1725730311107,2.01029904,2297.0,2296.9,4.42510578]
[1725730311486,5.45784894,2297.0,2296.9,4.42510578]
[1725730314881,5.01029904,2297.0,2296.9,8.77879578]
[1725730315087,5.01029904,2297.0,2296.9,4.42510578]
[1725730315287,5.01029904,2297.0,2296.9,8.77879578]
[1725730315909,2.01029904,2297.0,2296.9,4.42510578]
[1725730318625,4.38639904,2297.0,2296.9,4.42510578]
[1725730318785,7.82503894,2297.0,2296.9,0.07141578]
[1725730320433,2.3761,2296.9,2296.5,4.35441]
[1725730320585,2.3761,2296.9,2296.5,4.35434]
[1725730320586,3.9304729,2296.6,2296.5,4.35434]
[1725730320925,4.32352019,2296.6,2296.5,4.35434]
[1725730321132,7.32352019,2296.6,2296.5,4.42144788]
[1725730321431,7.77947692,2296.6,2296.5,4.42144788]
[1725730322245,7.32352019,2296.6,2296.5,4.42144788]
[1725730322733,4.5543729,2296.6,2296.5,4.42144788]
[1725730322894,1.5543729,2296.6,2296.5,4.42144788]
[1725730324328,0.45597641,2297.0,2296.9,8.70738]
[1725730324689,1.5543729,2297.0,2296.9,8.70738]
[1725730324994,1.5543729,2297.0,2296.9,8.77428351]
[1725730326189,1.5543729,2297.0,2296.9,4.42059351]
[1725730326389,1.5543729,2297.0,2296.9,0.06690351]
[1725730326591,5.20342445,2297.0,2296.5,4.3543]
[1725730326824,1.5543729,2296.6,2296.4,4.35462]
[1725730326990,1.5543729,2296.5,2296.4,4.35462]
[1725730327589,1.5543729,2296.5,2296.1,4.35509]
[1725730327824,1.5543729,2296.2,2296.1,4.35509]
[1725730329941,3.7321097,2296.3,2296.1,4.35509]
[1725730330140,3.0,2296.2,2296.1,4.35509]